bitfinex/quotes_ETHUSD_20240721
["timestamp","ask_amount","ask_price","bid_price","bid_amount"]
[1721602380600,2.82622,3538.3,3537.7,3.037063]
[1721602380799,2.82629,3538.2,3537.7,3.037063]
[1721602381459,2.87621,3538.4,3537.7,3.037063]
[1721602381654,2.82624,3538.3,3537.7,2.4097]
[1721602382300,0.05,3538.4,3537.7,2.4097]
[1721602382469,2.82644,3538.1,3537.7,2.4097]
[1721602384999,2.82622,3538.3,3537.7,2.4097]
[1721602387081,0.05,3538.4,3537.7,2.4097]
[1721602387082,2.82631,3538.2,3537.7,2.4097]
[1721602390380,2.82631,3538.2,3537.7,3.4467]
[1721602390904,2.87614,3538.4,3537.7,3.4467]
[1721602390905,0.05,3538.4,3537.9,1.037]
[1721602391061,0.05,3538.4,3537.7,0.627362]
[1721602391062,0.05,3538.4,3538.2,2.28]
[1721602399423,2.87614,3538.4,3538.2,2.28]
[1721602401256,2.82621,3538.3,3538.0,1.037]
[1721602401417,2.82622,3538.3,3537.8,2.3613]
[1721602401618,2.82629,3538.2,3537.9,0.23613]
[1721602401848,2.82629,3538.2,3537.8,2.3613]
[1721602403653,2.87615,3538.4,3537.8,2.3613]
[1721602403831,2.82622,3538.3,3537.8,2.3613]
[1721602404027,0.05,3538.4,3537.8,2.3613]
[1721602404227,0.05,3538.4,3537.9,0.622507]
[1721602404951,2.87614,3538.4,3537.9,0.622507]
[1721602408931,2.82621,3538.3,3537.9,0.622507]
[1721602409127,2.82621,3538.3,3537.8,2.3613]
[1721602409674,2.8263,3538.2,3537.8,2.3613]
[1721602409878,3.91315,3538.4,3537.8,2.3613]
[1721602410032,2.8264,3538.1,3537.8,2.3613]
[1721602410231,2.82625,3538.3,3537.8,2.59743]
[1721602412048,2.87614,3538.4,3537.8,2.59743]
[1721602413629,2.82637,3538.1,3537.8,2.3613]
[1721602414232,3.91313,3538.4,3537.8,2.3613]
[1721602414233,2.82626,3538.3,3537.8,2.3613]
[1721602417645,2.82629,3538.2,3537.8,2.3613]
[1721602417852,0.05,3538.4,3537.8,2.3613]
[1721602417853,2.82643,3538.1,3537.8,2.3613]
[1721602418471,2.82622,3538.3,3537.8,2.3613]
[1721602418874,2.8263,3538.2,3537.8,2.3613]
[1721602419477,2.87618,3538.4,3537.8,2.3613]
[1721602420264,2.87618,3538.4,3537.8,2.983814]
[1721602421076,2.82622,3538.3,3537.8,2.983814]
[1721602424078,2.8263,3538.2,3537.8,2.983814]
[1721602424282,2.8263,3538.2,3537.8,2.3613]
[1721602424491,2.82638,3538.1,3537.8,2.3613]
[1721602426278,1.037,3538.2,3537.8,2.3613]
[1721602427067,3.8633,3538.2,3537.8,2.3613]
[1721602433574,3.86351,3538.0,3537.5,3.03152664]
[1721602433779,3.86351,3538.0,3537.6,2.45717033]
[1721602433976,3.86351,3538.0,3537.6,0.63659369]
[1721602435068,3.86351,3538.0,3537.5,2.4467]
[1721602435270,3.86351,3538.0,3537.6,0.98289627]
[1721602435589,3.86351,3538.0,3537.5,2.4467]
[1721602435758,3.86351,3538.0,3537.6,0.982896]
[1721602435954,3.86351,3538.0,3537.5,2.4467]
[1721602436151,3.86351,3538.0,3537.6,0.98289643]
[1721602436394,3.86351,3538.0,3537.5,3.12028466]
[1721602436598,2.82661,3537.8,3537.6,0.98289666]
[1721602436794,3.86351,3538.0,3537.5,3.12028466]
[1721602436996,3.86351,3538.0,3537.6,0.98290514]
[1721602437164,3.86351,3538.0,3537.5,3.12028466]
[1721602437365,3.86351,3538.0,3537.6,0.98290615]
[1721602437697,3.86351,3538.0,3537.5,3.12028466]
[1721602437899,3.86351,3538.0,3537.6,0.98290649]
[1721602438066,2.82664,3537.8,3537.5,3.12028466]
[1721602438398,2.82664,3537.8,3537.6,1.35341889]
[1721602438563,2.82664,3537.8,3537.6,0.37051113]
[1721602438966,1.037,3537.8,3537.5,2.4467]
[1721602439165,1.037,3537.8,3537.6,0.98290811]
[1721602439366,1.037,3537.8,3537.5,2.4467]
[1721602439367,2.82669,3537.7,3537.5,2.4467]
[1721602440100,1.037,3537.8,3537.5,2.4467]
[1721602441400,2.82662,3537.8,3537.5,2.4467]
[1721602445021,2.8265,3538.0,3537.5,2.4467]
[1721602445387,3.8635,3538.0,3537.5,2.4467]
[1721602447276,2.82637,3538.1,3537.5,2.4467]
[1721602447511,3.86337,3538.1,3537.6,0.58585266]
[1721602447687,2.82646,3538.0,3537.6,0.58585266]
[1721602447887,2.82646,3538.0,3537.5,2.4467]
[1721602448789,2.82654,3537.9,3537.5,2.4467]
[1721602449628,2.82685,3537.6,3537.2,2.93662664]
[1721602449780,2.82685,3537.6,3537.2,2.3518]
[1721602451277,3.86392,3537.5,3537.0,0.58482664]
[1721602451506,3.86405,3537.3,3537.1,2.45754907]
[1721602451684,3.86405,3537.3,3537.0,1.0188845]
[1721602451685,1.037,3537.3,3536.9,2.93662664]
[1721602451891,2.82718,3537.1,3536.9,2.3518]
[1721602452173,3.86418,3537.1,3536.9,2.3518]
[1721602452580,2.82718,3537.1,3536.9,2.3518]
[1721602452806,2.82718,3537.1,3536.7,0.526712]
[1721602454527,2.82718,3537.1,3536.6,2.3518]
[1721602455217,2.82702,3537.3,3536.6,2.3518]
[1721602455401,2.4248,3538.2,3536.8,2.3518]
[1721602455605,1.037,3537.9,3536.8,2.3518]
[1721602455825,1.037,3537.9,3537.0,2.3518]
[1721602455994,3.86354,3537.9,3537.0,2.3518]
[1721602456422,2.82667,3537.8,3537.0,2.3518]
[1721602456694,2.82673,3537.7,3537.0,2.3518]
[1721602457306,2.82677,3537.6,3537.0,2.3518]
[1721602457626,3.86392,3537.5,3537.0,2.3518]
[1721602459501,1.037,3537.5,3537.0,2.3518]
[1721602459703,2.82654,3537.9,3537.1,0.2973436]
[1721602459704,2.82679,3537.6,3537.1,0.2973436]
[1721602459898,3.86379,3537.6,3537.1,0.2973436]
[1721602461036,2.82665,3537.8,3537.2,2.4731]
[1721602461196,1.037,3537.7,3537.2,3.09503996]
[1721602461748,3.0,3538.1,3537.3,2.827]
[1721602461749,2.82637,3538.1,3537.3,2.827]
[1721602462098,3.8633,3538.2,3537.4,2.4731]
[1721602462298,3.8633,3538.2,3537.5,0.592204]
[1721602463062,1.037,3538.0,3537.5,0.592204]
[1721602463701,1.037,3537.8,3537.5,0.592204]
[1721602464751,1.037,3537.6,3537.2,0.62193996]
[1721602465234,2.82646,3538.0,3537.2,0.62193996]
[1721602465235,1.037,3537.8,3537.2,0.62193996]
[1721602465603,3.86364,3537.8,3537.2,0.62193996]
[1721602469934,2.82671,3537.7,3537.2,0.62193996]
[1721602470129,2.82671,3537.7,3537.1,2.7704436]
[1721602471080,2.82686,3537.5,3536.8,2.4731]
[1721602471247,2.82686,3537.5,3536.9,0.98301627]
[1721602471447,2.82686,3537.5,3536.8,2.4731]
[1721602471835,3.86378,3537.6,3536.8,2.4731]
[1721602472032,2.82701,3537.3,3536.8,2.4731]
[1721602472234,1.037,3537.4,3536.8,3.06165366]
[1721602472745,2.82688,3537.5,3536.8,3.06165366]
[1721602473266,1.037,3537.6,3536.8,3.06165366]
[1721602473267,1.037,3537.6,3536.8,5.88906366]
[1721602474173,3.86378,3537.6,3536.8,5.88906366]
[1721602481257,2.82661,3537.8,3536.9,2.82732]
[1721602481473,1.037,3537.9,3537.2,2.82708]
[1721602481674,1.037,3537.9,3537.3,2.3153]
[1721602486205,3.0,3538.3,3537.4,2.82687]
[1721602486206,5.82622,3538.3,3537.4,2.82687]
[1721602486493,1.037,3538.1,3537.5,2.82683]
[1721602486652,1.037,3538.1,3537.5,0.796921]
[1721602488595,3.86337,3538.1,3537.5,0.796921]
[1721602488799,3.86353,3537.9,3537.3,2.3153]
[1721602488970,1.037,3537.9,3537.3,2.3153]
[1721602491283,2.82634,3538.2,3537.3,5.14231]
[1721602491509,2.82634,3538.2,3537.4,2.3747]
[1721602491675,3.86339,3538.1,3537.4,2.3747]
[1721602491907,2.82621,3538.3,3537.4,2.3747]
[1721602492080,0.287621,3538.2,3537.4,5.20163]
[1721602492307,1.037,3538.2,3537.4,5.20163]
[1721602492867,1.037,3538.0,3537.4,2.3747]
[1721602493069,2.82654,3537.9,3537.4,2.3747]
[1721602493594,3.86361,3537.8,3537.1,2.3747]
[1721602494118,2.8267,3537.7,3537.1,2.3747]
[1721602494419,2.4221,3538.2,3537.1,2.3747]
[1721602494420,3.86378,3537.6,3537.1,2.3747]
[1721602494561,3.86378,3537.6,3536.9,0.58482664]
[1721602494562,1.037,3537.6,3536.9,0.58482664]
[1721602494865,1.037,3537.6,3537.0,0.98301042]
[1721602494866,3.86396,3537.4,3537.0,0.98301042]
[1721602495071,3.86396,3537.4,3536.8,3.5480803]
[1721602495072,3.86396,3537.4,3536.8,2.3747]
[1721602495365,2.8271,3537.2,3536.6,0.58482664]
[1721602495565,2.8271,3537.2,3536.7,0.98309034]
[1721602495771,2.8271,3537.2,3536.6,0.91545199]
[1721602495966,2.8271,3537.2,3536.7,0.98311181]
[1721602496195,3.8641,3537.2,3536.6,0.91545199]
[1721602496402,3.8641,3537.2,3536.7,0.98311231]
[1721602496587,3.8641,3537.2,3536.6,0.91545199]
[1721602496795,3.8641,3537.2,3536.7,1.65338098]
[1721602497010,3.8641,3537.2,3536.7,0.67026986]
[1721602497409,1.037,3537.2,3536.7,0.67026986]
[1721602497614,3.86396,3537.4,3536.7,0.67026986]
[1721602497806,3.86396,3537.4,3536.8,0.98311014]
[1721602498124,3.86396,3537.4,3536.7,0.67026986]
[1721602498303,3.86396,3537.4,3536.8,0.98309664]
[1721602498509,3.86396,3537.4,3536.7,0.67026986]
[1721602498819,3.86396,3537.4,3536.8,0.98309664]
[1721602499024,3.86396,3537.4,3536.7,0.67026986]
[1721602499186,3.86396,3537.4,3536.8,0.98309606]
[1721602499519,3.86396,3537.4,3536.7,0.67026986]
[1721602499716,3.86396,3537.4,3536.8,0.98309606]
[1721602499923,1.037,3537.4,3536.7,0.67026986]
[1721602500139,2.82739,3536.9,3536.5,0.58482664]
[1721602500345,1.037,3536.8,3536.2,2.443]
[1721602500488,1.037,3536.8,3536.3,0.98322493]
[1721602500682,3.86444,3536.8,3536.2,2.443]
[1721602500889,3.86444,3536.8,3536.3,2.45810265]
[1721602501088,3.86444,3536.8,3536.1,0.58482664]
[1721602501089,2.8275,3536.7,3536.1,0.58482664]
[1721602501310,2.82757,3536.6,3536.2,2.45816595]
[1721602501614,2.82757,3536.6,3535.9,3.20563996]
[1721602501615,2.82757,3536.6,3536.0,0.58482664]
[1721602501929,2.82757,3536.6,3536.1,2.45816101]
[1721602502127,2.82757,3536.6,3536.2,0.9832644]
[1721602502424,2.82757,3536.6,3536.0,3.58482664]
[1721602502633,2.82757,3536.6,3536.1,3.13721119]
[1721602502925,2.82757,3536.6,3536.2,0.98326581]
[1721602503131,2.82757,3536.6,3536.1,0.67904666]
[1721602503344,2.82757,3536.6,3536.2,0.98326637]
[1721602503622,2.82757,3536.6,3536.1,0.67904666]
[1721602505061,2.82757,3536.6,3536.0,3.0]
[1721602505210,3.4388,3537.0,3536.1,0.9832667]
[1721602505403,6.26609,3537.0,3536.1,2.82794]
[1721602505847,3.86429,3537.0,3536.1,2.82794]
[1721602506411,2.82735,3536.9,3536.1,2.82794]
[1721602506643,2.82735,3536.9,3536.1,4.08856866]
[1721602507140,2.82735,3536.9,3536.1,1.26062866]
[1721602512327,2.82744,3536.8,3536.1,1.26062866]
[1721602512929,3.86444,3536.8,3536.1,1.26062866]
[1721602513862,3.86444,3536.8,3535.9,2.3284]
[1721602513863,6.15644,3536.8,3535.9,2.3284]
[1721602514651,2.82764,3536.6,3535.9,2.3284]
[1721602515646,3.86464,3536.6,3535.9,2.3284]
[1721602516220,3.86464,3536.6,3535.4,0.58482664]
[1721602516221,1.037,3536.2,3535.5,2.4122]
[1721602516449,1.037,3536.2,3535.7,2.4122]
[1721602516768,17.37078167,3537.5,3535.6,0.38742666]
[1721602516769,2.82721,3537.1,3536.1,5.24016]
[1721602516913,1.037,3537.2,3536.2,2.82788]
[1721602517129,2.82723,3537.1,3536.2,2.82788]
[1721602517447,3.8641,3537.2,3536.4,2.82772]
[1721602517655,3.8641,3537.2,3536.5,2.82763]
[1721602517656,2.983296,3537.2,3536.5,2.82763]
[1721602517970,2.983296,3537.2,3536.6,2.4122]
[1721602518727,2.82718,3537.1,3536.6,2.4122]
[1721602519359,2.983296,3537.2,3536.6,2.4122]
[1721602520350,5.810406,3537.2,3536.6,2.4122]
[1721602521245,3.86411,3537.2,3536.6,2.4122]
[1721602522477,2.82718,3537.1,3536.6,2.4122]
[1721602526188,2.4854,3538.0,3537.2,2.82709]
[1721602526391,1.037,3538.1,3537.3,2.82701]
[1721602526551,1.037,3538.1,3537.4,2.3127]
[1721602526751,3.86337,3538.1,3537.4,2.3127]
[1721602529673,2.82646,3538.0,3537.4,2.3127]
[1721602531182,0.05,3538.4,3537.8,2.82655]
[1721602531482,0.05,3538.4,3537.9,2.3127]
[1721602532183,0.05,3538.4,3537.9,5.935822]
[1721602532745,0.05,3538.4,3538.1,2.82635]
[1721602532979,0.05,3538.4,3538.0,1.037]
[1721602533182,0.05,3538.4,3538.3,2.82621]
[1721602533369,0.05,3538.4,3538.3,8.51512]
[1721602533553,0.05,3538.4,3538.3,9.752964]
[1721602535689,0.05,3538.4,3538.3,6.926754]
[1721602536594,0.05,3538.4,3538.3,5.68891]
[1721602537874,0.05,3538.4,3538.3,2.8627]
[1721602538082,0.05,3538.4,3538.3,2.3127]
[1721602538247,0.05,3538.4,3538.3,5.13891]
[1721602540286,0.05,3538.4,3538.1,2.82634]
[1721602540472,0.05,3538.4,3538.2,0.807679]
[1721602540657,0.05,3538.4,3538.0,3.0]
[1721602540848,0.05,3538.4,3537.9,2.424]
[1721602541263,0.05,3538.4,3537.9,5.2505]
[1721602541488,0.05,3538.4,3538.0,5.82644]
[1721602541692,0.05,3538.4,3538.2,2.82622]
[1721602542083,0.05,3538.4,3538.3,5.72111]
[1721602543106,0.05,3538.4,3538.3,8.54732]
[1721602545198,0.05,3538.4,3538.3,5.72111]
[1721602545381,0.05,3538.4,3538.3,2.3449]
[1721602545714,0.05,3538.4,3538.3,3.2727964]
[1721602546116,0.05,3538.4,3538.3,6.6490064]
[1721602547971,0.05,3538.4,3538.3,3.8227964]
[1721602548372,0.05,3538.4,3538.3,6.6490064]
[1721602556596,0.05,3538.4,3538.3,6.64775757]
[1721602557144,5.2792,3539.2,3538.3,3.27154757]
[1721602557309,2.82583,3538.8,3538.0,3.0]
[1721602557833,2.4537,3538.7,3538.0,5.82645]
[1721602558241,2.82583,3538.8,3538.0,5.82645]
[1721602559629,2.82583,3538.8,3538.0,8.20985]
[1721602559807,2.82583,3538.8,3538.1,1.103646]
[1721602560209,5.27941,3539.0,3538.1,1.103646]
[1721602560210,2.82573,3538.9,3538.1,3.930006]
[1721602560808,2.82564,3539.1,3538.2,2.82629]
[1721602563129,4.10142,3539.2,3538.4,2.8261]
[1721602563335,2.82557,3539.1,3538.4,2.8261]
[1721602563499,5.12285,3539.3,3538.5,2.2781]
[1721602563698,5.12285,3539.3,3538.4,2.8261]
[1721602563699,2.82575,3538.9,3538.2,2.4387]
[1721602563931,2.82562,3539.1,3538.2,5.26497]
[1721602564093,2.82562,3539.1,3538.2,6.4844756]
[1721602565135,2.82568,3539.0,3538.2,6.4844756]
[1721602565346,2.82584,3538.8,3538.2,3.6582056]
[1721602565546,2.2974,3539.3,3538.0,3.0]
[1721602565753,5.08116,3538.8,3538.0,5.82644]
[1721602565954,2.82586,3538.8,3538.1,2.82637]
[1721602566107,2.82589,3538.7,3538.0,3.0]
[1721602566311,2.82589,3538.7,3538.1,1.10918]
[1721602567031,2.82597,3538.6,3537.9,2.4387]
[1721602567959,2.82607,3538.5,3537.9,2.4387]
[1721602568461,2.8259,3538.7,3537.9,2.4387]
[1721602569256,9.7353,3539.1,3537.9,2.4387]
[1721602569257,2.82597,3538.6,3537.9,2.4387]
[1721602569552,2.82597,3538.6,3537.9,3.41263429]
[1721602571058,2.82609,3538.5,3537.9,3.41263429]
[1721602571350,2.82614,3538.4,3537.9,3.41263429]
[1721602572053,2.96614,3538.4,3537.9,3.41263429]
[1721602572255,0.14,3538.4,3538.0,2.45680938]
[1721602572455,0.14,3538.4,3537.9,3.41263429]
[1721602573046,0.14,3538.4,3537.7,3.41150664]
[1721602573247,2.96614,3538.4,3537.8,0.98276649]
[1721602573435,2.96614,3538.4,3537.9,2.45691246]
[1721602573637,2.96614,3538.4,3538.0,0.98275153]
[1721602573961,2.96614,3538.4,3537.8,0.58482664]
[1721602574155,2.96614,3538.4,3537.9,2.45689222]
[1721602574330,2.96614,3538.4,3538.0,0.98275689]
[1721602574528,0.14,3538.4,3538.1,0.98275386]
[1721602574745,0.14,3538.4,3537.7,0.58482664]
[1721602574918,0.14,3538.4,3537.8,3.40507199]
[1721602575120,0.14,3538.4,3537.9,2.45683033]
[1721602575333,0.14,3538.4,3537.8,0.94824166]
[1721602575536,0.14,3538.4,3537.9,2.45686515]
[1721602575732,0.14,3538.4,3537.8,0.94824166]
[1721602575962,0.14,3538.4,3537.9,2.45687022]
[1721602576265,0.14,3538.4,3537.8,0.94824166]
[1721602576416,0.14,3538.4,3537.9,1.75900529]
[1721602576616,0.14,3538.4,3537.9,0.77625583]
[1721602577431,2.96614,3538.4,3537.9,0.77625583]
[1721602577638,2.96614,3538.4,3537.7,4.44750664]
[1721602577950,2.82627,3538.3,3537.8,2.45689693]
[1721602578118,2.4637,3538.4,3537.9,0.98275877]
[1721602578321,2.4637,3538.4,3537.6,2.95162664]
[1721602578527,2.4637,3538.4,3537.7,2.4570061]
[1721602578748,2.4637,3538.4,3537.8,2.4570061]
[1721602579060,2.82623,3538.3,3537.9,0.98280244]
[1721602579377,2.82623,3538.3,3537.6,4.13775563]
[1721602579521,5.28984,3538.4,3537.7,2.45700298]
[1721602579729,5.28984,3538.4,3537.8,2.45699895]
[1721602580022,5.28984,3538.4,3537.9,0.98279958]
[1721602580222,2.82623,3538.3,3537.7,0.58482664]
[1721602580432,2.82623,3538.3,3537.6,2.3668]
[1721602580433,2.82623,3538.3,3537.8,2.45702863]
[1721602580658,2.82623,3538.3,3537.6,2.95162664]
[1721602580883,2.82623,3538.3,3537.7,3.22621661]
[1721602581061,2.82623,3538.3,3537.8,2.45704595]
[1721602581223,2.82623,3538.3,3537.7,0.76917066]
[1721602581554,0.14,3538.4,3537.8,2.45701576]
[1721602581760,2.82622,3538.3,3537.9,0.98281767]
[1721602581966,2.82622,3538.3,3537.7,1.80517066]
[1721602582166,2.82622,3538.3,3537.8,0.9828169]
[1721602582473,2.82622,3538.3,3537.7,0.76917066]
[1721602582622,2.8263,3538.2,3537.8,0.98281866]
[1721602582823,0.14,3538.4,3537.6,0.58482664]
[1721602582824,2.3111,3538.3,3537.6,0.58482664]
[1721602583023,5.13732,3538.3,3537.4,6.41174664]
[1721602583258,2.8263,3538.2,3537.5,4.69857968]
[1721602583459,2.8263,3538.2,3537.5,3.2774543]
[1721602583672,2.8263,3538.2,3537.6,2.45711976]
[1721602583834,2.3111,3538.3,3537.7,2.4571058]
[1721602584167,5.13733,3538.3,3537.5,5.51940766]
[1721602584367,0.14,3538.4,3537.7,2.82669]
[1721602584569,2.96613,3538.4,3537.7,2.82669]
[1721602585063,2.96613,3538.4,3537.7,3.86269]
[1721602585265,2.96613,3538.4,3537.7,1.036]
[1721602585474,2.82622,3538.3,3537.7,1.036]
[1721602585680,2.82622,3538.3,3537.7,1.87470461]
[1721602585967,2.82622,3538.3,3537.7,0.83870461]
[1721602587684,2.82629,3538.2,3537.6,0.93940947]
[1721602589163,2.82638,3538.1,3537.3,6.86201664]
[1721602589358,2.82638,3538.1,3537.4,2.45715913]
[1721602589577,2.82638,3538.1,3537.5,0.98286365]
[1721602589878,2.82638,3538.1,3537.3,6.86201664]
[1721602590040,2.82638,3538.1,3537.4,2.4571659]
[1721602590241,2.82638,3538.1,3537.5,1.91478461]
[1721602590441,2.82638,3538.1,3537.5,0.93191825]
[1721602591139,2.82622,3538.3,3537.5,0.93191825]
[1721602591335,1.176,3538.4,3537.5,0.93191825]
[1721602591571,1.176,3538.4,3537.6,0.98285872]
[1721602591572,2.82622,3538.3,3537.6,0.98285872]
[1721602591771,2.82646,3538.0,3537.3,4.03502664]
[1721602591975,2.82646,3538.0,3537.4,2.45716633]
[1721602592176,2.82646,3538.0,3537.3,4.03502664]
[1721602592177,2.82646,3538.0,3537.5,0.98286653]
[1721602592481,2.82653,3537.9,3537.3,3.4502]
[1721602592661,2.82653,3537.9,3537.4,1.6691142]
[1721602592861,2.82653,3537.9,3537.4,0.68620966]
[1721602594238,2.8264,3538.1,3537.4,0.68620966]
[1721602597041,2.82646,3538.0,3537.4,0.68620966]
[1721602597739,2.82643,3538.1,3537.4,0.68620966]
[1721602597995,5.30709,3538.2,3537.4,3.51308966]
[1721602598185,5.30709,3538.2,3537.5,3.86434863]
[1721602599199,0.14,3538.4,3538.1,1.036]
[1721602599357,0.14,3538.4,3537.7,2.2526]
[1721602599358,0.14,3538.4,3538.3,3.86221]
[1721602599558,0.14,3538.4,3538.3,8.94102]
[1721602599899,0.14,3538.4,3538.3,9.835122]
[1721602600193,0.14,3538.4,3538.3,10.81776313]
[1721602600397,0.14,3538.4,3538.3,9.835122]
[1721602600853,0.14,3538.4,3538.3,7.99155226]
[1721602601059,0.14,3538.4,3538.3,4.12934226]
[1721602601259,0.14,3538.4,3538.1,3.86237]
[1721602601471,0.14,3538.4,3538.2,3.80895285]
[1721602601655,0.14,3538.4,3538.2,2.82627]
[1721602605002,0.14,3538.4,3538.0,6.34999]
[1721602605200,0.14,3538.4,3538.1,0.9826953]
[1721602605373,0.14,3538.4,3538.2,0.73326853]
[1721602611419,0.14,3538.4,3538.2,4.59553853]
[1721602613221,0.14,3538.4,3538.2,0.73326853]
[1721602613922,0.14,3538.4,3538.2,3.55955853]
[1721602614624,0.14,3538.4,3538.2,4.59555853]
[1721602614824,0.14,3538.4,3538.3,1.04944352]
[1721602616432,0.14,3538.4,3538.3,3.87565352]
[1721602627741,0.14,3538.4,3538.3,6.70186352]
[1721602628531,0.14,3538.4,3538.3,7.25186352]
[1721602629105,0.14,3538.4,3538.3,12.50117352]
[1721602629307,0.14,3538.4,3538.3,17.95758602]
[1721602629529,0.14,3538.4,3538.3,15.50117352]
[1721602629730,7.48,3539.1,3539.0,2.82565]
[1721602629921,7.48,3539.7,3538.8,2.82581]
[1721602630117,2.82519,3539.6,3538.8,2.82581]
[1721602630450,8.840092,3539.7,3538.7,1.036]
[1721602630451,2.82531,3539.5,3538.7,1.036]
[1721602630616,1.036,3539.4,3538.5,3.86204]
[1721602630943,1.036,3539.4,3538.5,2.82604]
[1721602630944,2.2599,3539.3,3538.5,2.82604]
[1721602631634,2.2599,3539.3,3538.6,2.82596]
[1721602632329,2.2599,3539.3,3538.6,0.86038395]
[1721602632528,2.2599,3539.3,3538.7,2.82589]
[1721602632737,2.2599,3539.3,3538.7,1.036]
[1721602633069,2.2599,3539.5,3538.7,1.036]
[1721602633200,2.82534,3539.4,3538.7,1.036]
[1721602633654,2.82549,3539.2,3538.6,0.86038395]
[1721602633803,2.4588,3539.0,3538.3,5.08544352]
[1721602634144,2.4588,3539.0,3538.4,3.0]
[1721602634550,2.4588,3539.0,3538.3,1.04944352]
[1721602634703,2.4588,3539.0,3538.3,2.8262]
[1721602635924,2.4588,3539.0,3538.1,2.82637]
[1721602636130,2.82581,3538.8,3537.9,2.4516]
[1721602636317,2.82581,3538.8,3537.9,5.4516]
[1721602636517,2.82581,3538.8,3538.0,3.81627266]
[1721602637057,2.82581,3538.8,3538.0,4.85227266]
[1721602637551,2.4909,3538.6,3538.0,0.98990266]
[1721602637958,2.4909,3538.6,3538.0,3.81634266]
[1721602639910,2.4909,3538.6,3538.0,0.98990266]
[1721602640100,2.4909,3538.6,3537.8,2.8266]
[1721602640301,5.31689,3538.6,3537.8,2.8266]
[1721602640931,5.31689,3538.6,3537.6,5.86318664]
[1721602640932,2.4909,3538.6,3537.6,5.86318664]
[1721602641243,2.82606,3538.5,3537.7,9.8696255]
[1721602641456,2.82606,3538.5,3537.8,2.4569455]
[1721602641619,2.82606,3538.5,3537.9,0.98278304]
[1721602641808,2.82606,3538.5,3537.8,1.37832921]
[1721602642009,2.82606,3538.5,3537.9,0.98276856]
[1721602642206,2.82606,3538.5,3537.7,7.41268]
[1721602642406,2.82606,3538.5,3537.8,2.45694585]
[1721602642607,2.82606,3538.5,3537.9,0.98277834]
[1721602642836,2.82606,3538.5,3537.7,7.41268]
[1721602643048,2.82606,3538.5,3537.8,3.58964253]
[1721602643249,2.82606,3538.5,3537.9,0.98280315]
[1721602643565,2.4909,3538.6,3537.8,1.13263466]
[1721602643698,5.31687,3538.6,3537.9,0.98279622]
[1721602643900,5.31687,3538.6,3537.8,1.13263466]
[1721602644201,5.31687,3538.6,3537.9,0.98280007]
[1721602644418,5.31687,3538.6,3537.8,1.13263466]
[1721602644614,5.31687,3538.6,3537.9,0.98279764]
[1721602644846,1.036,3538.5,3537.7,0.58482664]
[1721602645145,2.4807,3538.2,3537.4,0.58482664]
[1721602645357,5.30706,3538.2,3537.5,2.45720645]
[1721602645649,5.30706,3538.2,3537.6,0.98288885]
[1721602645850,5.30706,3538.2,3537.4,0.58482664]
[1721602646064,2.82651,3538.0,3537.5,2.45722622]
[1721602646239,2.82651,3538.0,3537.6,0.98289049]
[1721602646437,2.82651,3538.0,3537.3,2.87962664]
[1721602646754,2.82651,3538.0,3537.4,3.21922694]
[1721602646906,2.82638,3538.1,3537.5,2.45723228]
[1721602647109,2.82638,3538.1,3537.4,0.76199466]
[1721602647329,2.82651,3538.0,3537.5,0.98289606]
[1721602647554,2.82651,3538.0,3537.4,0.76199466]
[1721602647738,2.82651,3538.0,3537.5,0.98290597]
[1721602648050,5.30703,3538.2,3537.4,0.76199466]
[1721602648262,5.30703,3538.2,3537.5,0.98290551]
[1721602648412,5.30703,3538.2,3537.4,0.76199466]
[1721602648413,2.82638,3538.1,3537.4,0.76199466]
[1721602648761,2.82638,3538.1,3537.5,0.9829062]
[1721602648906,2.82638,3538.1,3537.4,0.76199466]
[1721602648907,2.4807,3538.2,3537.4,3.58891466]
[1721602649111,4.7791746,3539.2,3537.6,1.036]
[1721602649112,2.4807,3538.6,3537.6,1.036]
[1721602649625,2.82612,3538.5,3537.7,2.82661]
[1721602649822,2.82614,3538.4,3537.6,3.86276]
[1721602650027,2.82614,3538.4,3537.7,3.80952039]
[1721602650227,2.82614,3538.4,3537.7,3.72745312]
[1721602650546,2.82614,3538.4,3537.8,2.4946]
[1721602650848,2.82607,3538.5,3537.8,2.4946]
[1721602652644,6.34269,3538.6,3537.8,5.32118]
[1721602653727,2.82607,3538.5,3537.8,5.32118]
[1721602654343,2.82607,3538.5,3537.8,2.4946]
[1721602654653,2.82607,3538.5,3537.7,0.90077312]
[1721602655341,2.82607,3538.5,3537.8,0.69548873]
[1721602658135,2.82607,3538.5,3537.7,3.72739312]
[1721602660739,2.82607,3538.5,3537.8,2.82661]
[1721602661864,2.82607,3538.5,3537.7,0.90077312]
[1721602662564,2.82607,3538.5,3537.7,3.72745312]
[1721602663025,2.82615,3538.4,3537.7,3.72745312]
[1721602663427,3.86215,3538.4,3537.7,0.90077312]
[1721602663616,3.86215,3538.4,3537.5,5.30375]
[1721602663824,2.82622,3538.3,3537.5,5.30375]
[1721602664049,2.82631,3538.2,3537.5,5.30375]
[1721602665357,2.2624,3538.1,3537.5,2.82685]
[1721602665919,6.12457,3538.4,3537.6,2.82675]
[1721602667144,3.2984,3538.4,3537.7,2.82668]
[1721602667567,6.12454,3538.4,3537.7,2.82668]
[1721602671891,3.2984,3538.4,3537.7,2.82668]
[1721602672187,3.2984,3538.4,3537.8,2.8266]
[1721602675418,6.12453,3538.4,3537.7,0.668952]
[1721602676405,1.77755643,3539.5,3539.4,2.82533]
[1721602676718,5.14316,3540.7,3539.4,1.868533]